Cogmind - Beta 10.2 @@@ ROGUE MODE // 2022.02.25 @ 18:21:47 Player: Lumi Result: Destroyed by P-80 Master with Gamma Rifle Performance ------------- Evolutions (9) 4500 Regions Visited (16) 3200 Robots Destroyed (14) 70 Value Destroyed (244) 244 Prototype IDs (29) 580 Alien Tech Used (3) 600 Bonus (2835) 2835 TOTAL SCORE: 12029 Bonus ------- Triggered Max Security 2000 Follower Combat Kills 35 Aligned with FarCom 300 Scanned by Researcher 500 Cogmind --------- Core Integrity 0/1600 Matter 28/300 Energy 100/100 System Corruption 1% Temperature Cool (0) Movement Core (50) Location -1/Access Parts ------- > --- POWER (3) -------- (None) > --- PROPULSION (6) --- Improved Heavy Siege Treads > --- UTILITY (12) ----- Enhanced Optical Array Improved Targeting Computer Advanced Targeting Computer Improved Target Analyzer > --- WEAPON (4) ------- (None) > --- INVENTORY (4) ---- Quantum Reactor Experimental Power Amplifier Stasis Canceller Enhanced Quantum Rifle Peak State ------------ > --- POWER ------------ Micro Fission Core Light Particle Reactor Light Quantum Reactor > --- PROPULSION ------- Field Propulsion Array Field Propulsion Array Field Propulsion Array > --- UTILITY ---------- Large Storage Unit Enhanced Optical Array Improved Stasis Canceller Advanced Reaction Control System Phase Armor Improved Hacking Suite Advanced Hacking Suite Advanced Hacking Suite System Shield Matter Drive > --- WEAPON ----------- (None) > --- INVENTORY -------- Impulse Thruster Improved Heat Shielding Advanced ECM Suite Reaction Control System Point Defense Array Long-range Tractor Beam Trap Reconfigurator Enhanced Quantum Rifle Enhanced Quantum Rifle Gamma Bomb Array [Rating: 170] Favorites ----------- Power Micro Fission Core Engine Ion Engine Power Core Micro Fission Core Reactor Light Antimatter Reactor Propulsion Field Propulsion Array Treads Light Treads Wheel Wheel Hover Unit Gravmag System Flight Unit Field Propulsion Array Utility Hacking Suite Device Advanced ECM Suite Storage Large Storage Unit Processor Enhanced Optical Array Hackware Hacking Suite Protection Improved Light Armor Plating Artifact Matter Drive Weapon Gatling Laser Energy Gun Gatling Laser Energy Cannon Matter Neutralizer Ballistic Gun Heavy Assault Rifle Launcher Micro-nuke Launcher Build | -11 -10 -10 -10 -9 -8 -7 -6 -6 -6 -5 -4 -3 -2 -2 -2 -1 ------- Run | Scr Mat Min Exi Min Mat Fac Fac Low Low Fac Fac Res Res Qua Sec Acc Slots Evolved 18 | . . . . . 4 2 2 . . 2 2 2 2 . . 2 Power 2 | . . . . . 1 . . . . 1 . . . . . . Propulsion 4 | . . . . . 2 1 . . . 1 . . . . . . Utility 10 | . . . . . 1 1 2 . . . 2 2 2 . . . Weapon 2 | . . . . . . . . . . . . . . . . 2 Parts Attached 143 | 5 9 . 2 1 8 7 13 2 1 8 14 24 11 12 13 13 Power 22 | 1 1 . . . 1 3 3 . . 3 2 4 . 1 3 . Engine 8 | 1 1 . . . . 3 2 . . . . 1 . . . . Core 6 | . . . . . 1 . 1 . . 3 1 . . . . . Reactor 8 | . . . . . . . . . . . 1 3 . 1 3 . Propulsion 31 | 2 2 . . . 3 2 3 . . 1 4 4 . 1 3 6 Treads 5 | 2 . . . . . . . . . . . . . . . 3 Leg . | . . . . . . . . . . . . . . . . . Wheel 2 | . . . . . . . . . . . . . . . . 2 Hover 3 | . . . . . . 1 1 . . . . . . . . 1 Flight 21 | . 2 . . . 3 1 2 . . 1 4 4 . 1 3 . Utility 71 | . 4 . 2 . 2 2 7 1 . 3 6 14 9 8 7 6 Device 36 | . . . 2 . . . 4 1 . 1 4 7 6 5 6 . Storage 7 | . 2 . . . 1 . 2 . . . 1 . . . . 1 Processor 9 | . 2 . . . . 1 1 . . . . . 1 . . 4 Hackware 11 | . . . . . 1 1 . . . 2 . 3 2 1 1 . Protection 5 | . . . . . . . . . . . 1 4 . . . . Artifact 3 | . . . . . . . . . . . . . . 2 . 1 Weapon 19 | 2 2 . . 1 2 . . 1 1 1 2 2 2 2 . 1 Energy Gun 9 | . . . . . 1 . . . 1 1 . 1 2 2 . 1 Energy Cannon 2 | . . . . . . . . . . . 1 1 . . . . Ballistic Gun 7 | 2 2 . . 1 1 . . 1 . . . . . . . . Ballistic Cannon . | . . . . . . . . . . . . . . . . . Launcher 1 | . . . . . . . . . . . 1 . . . . . Special Weapon . | . . . . . . . . . . . . . . . . . Impact Weapon . | . . . . . . . . . . . . . . . . . Slashing Weapon . | . . . . . . . . . . . . . . . . . Piercing Weapon . | . . . . . . . . . . . . . . . . . Special Melee Weapon . | . . . . . . . . . . . . . . . . . Unidentified Prototypes 9 | . 1 . 2 . . . . . . . . . 1 3 1 1 Parts Lost 49 | . . . . . 2 3 . . . . 1 18 3 1 13 8 Power 7 | . . . . . 1 . . . . . . 4 1 . 1 . Propulsion 14 | . . . . . . 1 . . . . . 3 . 1 5 4 Utility 20 | . . . . . . . . . . . 1 6 2 . 7 4 Weapon 8 | . . . . . 1 2 . . . . . 5 . . . . Highest Loss Streak 13 | . . . . . 2 2 . . . . 1 9 2 1 13 8 Average Slot Usage (%) 79 | . 95 85 88 100 96 84 84 86 94 88 79 81 81 74 68 35 Engine 3 | . 14 14 14 14 9 7 7 6 6 . . . . . . . Core 5 | . . . . . 7 . 3 6 6 10 9 7 8 4 3 . Reactor 2 | . . . . . . . . . . . 4 3 4 7 6 . Treads 2 | . 23 . . . . . . . . . . . . . . 4 Flight 17 | . 4 28 28 28 34 29 29 33 33 34 15 13 13 13 14 . Device 9 | . . . 2 14 9 7 6 7 13 8 14 10 10 12 14 3 Storage 4 | . 17 . . . 6 . 5 4 . . 4 4 4 4 3 3 Processor 7 | . 6 14 14 14 9 7 12 13 13 8 5 4 4 4 4 15 Hackware 13 | . . . . . 1 12 13 13 13 16 15 21 23 22 16 3 Energy Gun 3 | . . . . . 7 5 . . 1 5 5 5 7 2 . 1 Ballistic Gun 4 | . 28 28 28 28 10 6 . . 6 . . . . . . . Naked Turns . | . . . . . . . . . . . . . . . . . Heaviest Build 70 | 8 28 11 19 12 17 12 17 22 26 31 63 69 68 70 68 21 Greatest Support 150 | 40 40 12 12 12 18 18 26 26 26 32 69 69 69 69 70 150 Greatest Overweight (x) 4 | . 4 . 1 . . . . . . . . . . 1 . 4 Average Overweight (x) . | . . . . . . . . . . . . . . . . . Largest Inventory Capacity 12 | 4 12 4 4 4 4 4 4 4 4 4 10 10 10 10 10 4 Average Capacity 7 | 4 9 4 4 4 4 4 4 4 4 4 9 10 10 10 9 4 Most Carried 10 | 4 10 4 4 4 3 4 4 4 4 4 10 10 10 10 10 4 Average Carried 6 | 2 6 4 3 3 1 3 3 3 4 3 8 9 7 8 9 3 Final Capacity 10 | 4 4 4 4 4 4 4 4 4 4 4 10 10 10 10 4 4 Final Carried 10 | 4 4 4 3 4 1 4 4 4 4 3 10 4 9 8 4 4 Class Distribution -------------------- 30% | Hacker-Mutant 25% | Hacker-Sprinter 16% | Mutant 15% | Wizard-Mutant 11% | Sprinter Dominant Class ---------------- Mutant | -10/Materials Mutant | -10/Mines Sprinter | -10/Exiles Sprinter | -9/Mines Sprinter | -8/Materials Hacker-Sprinter | -7/Factory Hacker-Sprinter | -6/Factory Hacker-Sprinter | -6/Lower Caves Hacker-Sprinter | -6/Lower Caves Hacker-Sprinter | -5/Factory Hacker-Mutant | -4/Factory Wizard-Mutant | -3/Research Wizard-Mutant | -2/Research Hacker-Mutant | -2/Quarantine Hacker-Sprinter | -2/Section 7 Mutant | -1/Access Resources | -11 -10 -10 -10 -9 -8 -7 -6 -6 -6 -5 -4 -3 -2 -2 -2 -1 ----------- Run | Scr Mat Min Exi Min Mat Fac Fac Low Low Fac Fac Res Res Qua Sec Acc Matter Collected 1123 | 131 103 . . 320 . . . 125 10 . . 348 . 68 . 18 Remotely 68 | . . . . . . . . . . . . . . 68 . . Salvage Created 511 | . 241 . . . . . . . . . . 184 . 68 . 18 Parts 32 | . 19 . . . . . . . . . . 11 . . . 2 Haulers Intercepted 1 | . 1 . . . . . . . . . . . . . . . Recyclers Shooed . | . . . . . . . . . . . . . . . . . Parts Field Recycled 5 | . . . . . . . . . . . . 5 . . . . Retrieved Matter 27 | . . . . . . . . . . . . 27 . . . . Parts Self-Destructed 1 | . . . . . . . . . 1 . . . . . . . Prevented 2 | . . . . . . . . 2 . . . . . . . . Kills | -11 -10 -10 -10 -9 -8 -7 -6 -6 -6 -5 -4 -3 -2 -2 -2 -1 ------- Run | Scr Mat Min Exi Min Mat Fac Fac Low Low Fac Fac Res Res Qua Sec Acc Combat Hostiles Destroyed 5 | . 5 . . . . . . . . . . . . . . . Guns 5 | . 5 . . . . . . . . . . . . . . . Classes Destroyed 8 | . 5 . . . . . . . . . . 2 . 1 . . Worker 4 | . 1 . . . . . . . . . . 2 . . . 1 Builder 1 | . . . . . . . . . . . . 1 . . . . Hauler 1 | . 1 . . . . . . . . . . . . . . . Recycler 1 | . . . . . . . . . . . . 1 . . . . Watcher 1 | . 1 . . . . . . . . . . . . . . . Swarmer 2 | . 2 . . . . . . . . . . . . . . . Grunt 3 | . 3 . . . . . . . . . . . . . . . Researcher 1 | . . . . . . . . . . . . . . 1 . . Best Kill Streak 4 | . 4 . . . . . . . . . . 3 . 1 . 1 Combat Bots Only 2 | . 2 . . . . . . . . . . . . . . . Max Kills in Single Turn 2 | . 2 . . . . . . . . . . 1 . 1 . 1 Gunslinging . | . . . . . . . . . . . . . . . . . Exploded . | . . . . . . . . . . . . . . . . . Melee . | . . . . . . . . . . . . . . . . . Uniques/NPCs Destroyed . | . . . . . . . . . . . . . . . . . Combat | -11 -10 -10 -10 -9 -8 -7 -6 -6 -6 -5 -4 -3 -2 -2 -2 -1 -------- Run | Scr Mat Min Exi Min Mat Fac Fac Low Low Fac Fac Res Res Qua Sec Acc Damage Taken 9236 | . 410 . . 32 300 267 40 . 19 61 379 1942 376 166 1584 3660 Core 2835 | . 69 . . . 37 39 . . . 23 118 187 48 68 631 1615 Absorbed by Shields 31 | . . . . . . . . . . . . 31 . . . . Core Remaining (%) 85 | 100 . . . 72 93 94 . . 100 97 89 85 . . 40 . Volleys Fired 56 | . 31 . . . . . . . . 1 . 12 . 10 . 2 Largest 2 | . 2 . . . . . . . . 1 . 2 . 2 . 1 Hottest 188 | . 40 . . . . . . . . 80 . 100 . 188 . 94 Shots Fired 102 | . 62 . . . . . . . . 1 . 23 . 14 . 2 Gun 102 | . 62 . . . . . . . . 1 . 23 . 14 . 2 Cannon . | . . . . . . . . . . . . . . . . . Launcher . | . . . . . . . . . . . . . . . . . Special . | . . . . . . . . . . . . . . . . . Kinetic 62 | . 62 . . . . . . . . . . . . . . . Thermal 40 | . . . . . . . . . . 1 . 23 . 14 . 2 Explosive . | . . . . . . . . . . . . . . . . . Electromagnetic . | . . . . . . . . . . . . . . . . . Robot Hit Streak 24 | . 24 . . . . . . . . . . 14 . 7 . 1 Robot Miss Streak 2 | . 2 . . . . . . . . . . 2 . . . 1 Penetration Max . | . . . . . . . . . . . . . . . . . Secondary Targets 1 | . 1 . . . . . . . . . . . . . . . Max Gunslinging Chain 1 | . 1 . . . . . . . . . . . . . . . Shots Hit Robots 73 | . 50 . . . . . . . . . . 15 . 7 . 1 Core Hits 31 | . 16 . . . . . . . . . . 8 . 3 2 2 Critical Hits 1 | . 1 . . . . . . . . . . . . . . . Critical Kills . | . . . . . . . . . . . . . . . . . Critical Parts Destroyed 1 | . 1 . . . . . . . . . . . . . . . Melee Attacks . | . . . . . . . . . . . . . . . . . Impact . | . . . . . . . . . . . . . . . . . Slashing . | . . . . . . . . . . . . . . . . . Piercing . | . . . . . . . . . . . . . . . . . Sneak Attacks . | . . . . . . . . . . . . . . . . . Combat Hostiles . | . . . . . . . . . . . . . . . . . Follow-up Attacks . | . . . . . . . . . . . . . . . . . Damage Inflicted 962 | . 483 . . . . . . . . . . 282 . 154 7 36 Guns 949 | . 483 . . . . . . . . . . 282 . 154 . 30 Cannons . | . . . . . . . . . . . . . . . . . Explosions . | . . . . . . . . . . . . . . . . . Melee . | . . . . . . . . . . . . . . . . . Ramming 13 | . . . . . . . . . . . . . . . 7 6 Kinetic 483 | . 483 . . . . . . . . . . . . . . . Thermal 466 | . . . . . . . . . . . . 282 . 154 . 30 Explosive . | . . . . . . . . . . . . . . . . . Electromagnetic . | . . . . . . . . . . . . . . . . . Impact . | . . . . . . . . . . . . . . . . . Slashing . | . . . . . . . . . . . . . . . . . Piercing . | . . . . . . . . . . . . . . . . . Highest Corruption 3 | . . . . . . . . . . 1 1 2 . 2 3 1 Average Corruption 1 | . . . . . . . . . . 1 1 1 . 1 2 1 Corruption Purged . | . . . . . . . . . . . . . . . . . Effects 4 | . . . . . . . . . . . 2 . . 1 1 . Heat Flow Errors 1 | . . . . . . . . . . . . . . . 1 . Energy Discharges 2 | . . . . . . . . . . . 2 . . . . . Data Loss (minor) 1 | . . . . . . . . . . . . . . 1 . . Overload Shots . | . . . . . . . . . . . . . . . . . Overflow Damage . | . . . . . . . . . . . . . . . . . Projectiles . | . . . . . . . . . . . . . . . . . Explosions . | . . . . . . . . . . . . . . . . . Melee . | . . . . . . . . . . . . . . . . . Knockbacks . | . . . . . . . . . . . . . . . . . Impact . | . . . . . . . . . . . . . . . . . Kinetic . | . . . . . . . . . . . . . . . . . Secondary . | . . . . . . . . . . . . . . . . . Self-Inflicted Damage 5 | . . . . . . . . . . . . . . . 3 2 Shots . | . . . . . . . . . . . . . . . . . Rammed 5 | . . . . . . . . . . . . . . . 3 2 Targets Rammed 5 | . . . . . . . . . . . . . . . 3 2 Kicked . | . . . . . . . . . . . . . . . . . Crushed . | . . . . . . . . . . . . . . . . . Highest Temperature 330 | . 18 . . . 5 . 11 . 3 40 36 330 6 96 312 . Average Temperature 76 | . 7 . . . 3 . 8 . 3 19 24 112 4 45 75 . Received Heat Transfer 819 | . 156 . . 18 63 27 18 . 6 . 42 57 36 . 126 270 Effects 3 | . . . . . . . . . . . . 3 . . . . Energy Bleed 1 | . . . . . . . . . . . . 1 . . . . Interference 2 | . . . . . . . . . . . . 2 . . . . Siege Activations . | . . . . . . . . . . . . . . . . . Robots Corrupted . | . . . . . . . . . . . . . . . . . Combat Hostiles . | . . . . . . . . . . . . . . . . . Parts Fried . | . . . . . . . . . . . . . . . . . Impact Corruptions . | . . . . . . . . . . . . . . . . . Robots Melted . | . . . . . . . . . . . . . . . . . Combat Hostiles . | . . . . . . . . . . . . . . . . . Parts Melted 1 | . . . . . . . . . . . . 1 . . . . Heat Transferred 851 | . . . . . . . . . . . . 555 . 259 . 37 Parts Sabotaged . | . . . . . . . . . . . . . . . . . Parts Stolen . | . . . . . . . . . . . . . . . . . Parts Stripped . | . . . . . . . . . . . . . . . . . Power Chain Reactions . | . . . . . . . . . . . . . . . . . Missiles Intercepted . | . . . . . . . . . . . . . . . . . Alert | -11 -10 -10 -10 -9 -8 -7 -6 -6 -6 -5 -4 -3 -2 -2 -2 -1 ------- Run | Scr Mat Min Exi Min Mat Fac Fac Low Low Fac Fac Res Res Qua Sec Acc Peak Influence 1955 | . 219 39 . 112 392 321 322 . . 185 230 531 497 1823 1955 1147 Initial 1142 | . . 39 . . 43 176 151 . . 125 16 120 267 276 1100 1142 Average 400 | . 99 39 . 33 208 231 199 . . 146 56 314 318 1635 1643 1103 Maximum Alert Level 5 | . 1 . . . 1 1 1 . . . 1 2 2 5 5 4 Low Security (%) 51 | 100 95 100 . 100 47 23 65 . . 100 92 34 . . . . Level 1 21 | . 4 . . . 52 76 34 . . . 7 28 82 . . . Level 2 8 | . . . . . . . . . . . . 36 17 . . . Level 3 1 | . . . . . . . . . . . . . . . . 16 Level 4 8 | . . . . . . . . . . . . . . . . 83 Level 5 . | . . . . . . . . . . . . . . . . . High Security . | . . . . . . . . . . . . . . . . . Max Security 8 | . . . . . . . . . . . . . . 99 99 . Squads Dispatched 54 | . . . . 1 3 5 2 . . 5 6 12 . 7 12 1 Investigation 18 | . . . . 1 3 3 1 . . 4 3 3 . . . . Extermination 6 | . . . . . . 1 . . . 1 2 2 . . . . Reinforcement 6 | . . . . . . 1 1 . . . 1 2 . 1 . . Assault 21 | . . . . . . . . . . . . 2 . 6 12 1 Garrison 3 | . . . . . . . . . . . . 3 . . . . Intercept . | . . . . . . . . . . . . . . . . . Construction Impeded . | . . . . . . . . . . . . . . . . . Haulers Reinforced . | . . . . . . . . . . . . . . . . . Stealth | -11 -10 -10 -10 -9 -8 -7 -6 -6 -6 -5 -4 -3 -2 -2 -2 -1 --------- Run | Scr Mat Min Exi Min Mat Fac Fac Low Low Fac Fac Res Res Qua Sec Acc Distress Signals 6 | . 2 . . . 1 . . . . . . . 3 . . . Communications Jammed 24 | . . . . . . . . . . . . 24 . . . . Distress Signals 24 | . . . . . . . . . . . . 24 . . . . Times Spotted 301 | . 14 3 . 9 26 22 7 3 1 7 24 61 20 22 60 22 Peak Tracking Total 37 | . 5 13 . 4 16 12 8 3 1 9 5 31 11 18 37 15 Tactical Retreats 41 | . 5 . . 2 2 5 2 2 . . 7 6 5 1 3 1 Traps | -11 -10 -10 -10 -9 -8 -7 -6 -6 -6 -5 -4 -3 -2 -2 -2 -1 ------- Run | Scr Mat Min Exi Min Mat Fac Fac Low Low Fac Fac Res Res Qua Sec Acc Traps Triggered 8 | . . . . . . . . . . 3 2 1 . . 2 . Indirectly . | . . . . . . . . . . . . . . . . . Trap Hack Attempts . | . . . . . . . . . . . . . . . . . Triggered . | . . . . . . . . . . . . . . . . . Disarmed . | . . . . . . . . . . . . . . . . . Reprogrammed . | . . . . . . . . . . . . . . . . . Reused 2 | . . . . . . . 1 . . 1 . . . . . . Traps Reconfigurated 13 | . . . . . . 3 2 . . 5 3 . . . . . Traps Extracted . | . . . . . . . . . . . . . . . . . Installed . | . . . . . . . . . . . . . . . . . Triggered 6 | . . . . . . . 1 2 2 1 . . . . . . Machines | -11 -10 -10 -10 -9 -8 -7 -6 -6 -6 -5 -4 -3 -2 -2 -2 -1 ---------- Run | Scr Mat Min Exi Min Mat Fac Fac Low Low Fac Fac Res Res Qua Sec Acc Machines Disabled 2 | . . . . . . . . . . . . . . 2 . . Max in Single Turn 1 | . . . . . . . . . . . . . . 1 . . Machines Sabotaged . | . . . . . . . . . . . . . . . . . Garrisons Compromised . | . . . . . . . . . . . . . . . . . Overloaded Fab Kills . | . . . . . . . . . . . . . . . . . Fab Network Shutdowns 1 | . . . . . . . . . . . . 1 . . . . Hacking | -11 -10 -10 -10 -9 -8 -7 -6 -6 -6 -5 -4 -3 -2 -2 -2 -1 --------- Run | Scr Mat Min Exi Min Mat Fac Fac Low Low Fac Fac Res Res Qua Sec Acc Machines Accessed 62 | . 7 . 5 1 6 8 6 . . 6 10 11 2 . . . Terminals 31 | . 6 . . . 5 4 2 . . 5 5 4 . . . . Fabricators 6 | . . . . . . 2 1 . . 1 1 1 . . . . Repair Stations 6 | . 1 . . . . . 1 . . . 1 2 1 . . . Recycling Units 5 | . . . . . . . 2 . . . 1 2 . . . . Scanalyzers 6 | . . . . . 1 1 . . . . 2 1 1 . . . Garrison Access 2 | . . . . . . 1 . . . . . 1 . . . . Total Hacks 169 | . 16 . 50 1 9 18 11 . . 15 19 27 3 . . . Successful 139 | . 9 . 50 1 6 13 10 . . 12 12 24 2 . . . Failed 30 | . 7 . . . 3 5 1 . . 3 7 3 1 . . . Catastrophic 1 | . . . . . 1 . . . . . . . . . . . Database Lockouts . | . . . . . . . . . . . . . . . . . Manual 77 | . 17 . 1 . 9 11 4 . . 11 12 12 . . . . Terminals 68 | . 15 . . . 8 9 3 . . 12 11 10 . . . . Fabricators 18 | . . . . . . 4 3 . . 3 3 5 . . . . Repair Stations 10 | . 1 . . . . . 2 . . . 2 3 2 . . . Recycling Units 9 | . . . . . . . 3 . . . 1 5 . . . . Scanalyzers 7 | . . . . . 1 2 . . . . 2 1 1 . . . Garrison Access 6 | . . . . . . 3 . . . . . 3 . . . . Terminal Hacks 69 | . 3 . 50 1 1 2 1 . . 4 2 5 . . . . Record 50 | . . . 49 . . . . . . . . 1 . . . . Part Schematic 4 | . 1 . . . 1 1 . . . 1 . . . . . . Open Door 1 | . . . . 1 . . . . . . . . . . . . Level Access Points 1 | . . . . . . . . . . . . 1 . . . . Terminal Index 5 | . 1 . . . . . 1 . . 1 1 1 . . . . Unreport Threat 6 | . 1 . . . . 1 . . . 1 1 2 . . . . Locate Traps 1 | . . . . . . . . . . 1 . . . . . . EX-Prototype ID Bank 1 | . . . 1 . . . . . . . . . . . . . Fabricator Hacks 13 | . . . . . . 3 2 . . 2 2 4 . . . . Load Schematic 6 | . . . . . . 1 1 . . 1 1 2 . . . . Build 7 | . . . . . . 2 1 . . 1 1 2 . . . . Repair Station Hacks 6 | . . . . . . . 2 . . . . 3 1 . . . Scan Component 2 | . . . . . . . 1 . . . . 1 . . . . Repair 2 | . . . . . . . 1 . . . . 1 . . . . Refit 2 | . . . . . . . . . . . . 1 1 . . . Recycling Unit Hacks 8 | . . . . . . . 2 . . . 1 5 . . . . Report Inventory 4 | . . . . . . . . . . . 1 3 . . . . Retrieve Matter 2 | . . . . . . . 2 . . . . . . . . . Retrieve Components 2 | . . . . . . . . . . . . 2 . . . . Scanalyzer 3 | . . . . . . 2 . . . . . . 1 . . . Insert Component 2 | . . . . . . 1 . . . . . . 1 . . . Analyze 1 | . . . . . . 1 . . . . . . . . . . Garrison Access Hacks 1 | . . . . . . 1 . . . . . . . . . . Coupler Status 1 | . . . . . . 1 . . . . . . . . . . Unauthorized Hacks 38 | . 6 . . . 5 5 3 . . 6 6 7 . . . . Terminals 28 | . 5 . . . 4 4 2 . . 6 4 3 . . . . Assimilate 2 | . 1 . . . . . . . . 1 . . . . . . Botnet 26 | . 4 . . . 4 4 2 . . 5 4 3 . . . . Fabricators 2 | . . . . . . . 1 . . . . 1 . . . . Siphon 2 | . . . . . . . 1 . . . . 1 . . . . Repair Stations 1 | . 1 . . . . . . . . . . . . . . . Mechanics 1 | . 1 . . . . . . . . . . . . . . . Recycling Units . | . . . . . . . . . . . . . . . . . Scanalyzers 4 | . . . . . 1 . . . . . 2 1 . . . . Extract 4 | . . . . . 1 . . . . . 2 1 . . . . Garrison Access 3 | . . . . . . 1 . . . . . 2 . . . . Reprogram 3 | . . . . . . 1 . . . . . 2 . . . . Data Cores Recovered . | . . . . . . . . . . . . . . . . . Used . | . . . . . . . . . . . . . . . . . Hacking Detections 39 | . 2 . . . 4 6 4 . . 6 7 8 2 . . . Full Trace Events 12 | . . . . . 2 3 1 . . 3 1 2 . . . . Feedback Events 2 | . . . . . . . . . . 1 . 1 . . . . Corruption 1 | . . . . . . . . . . 1 . . . . . . Hackware Fried 1 | . . . . . . . . . . . . 1 . . . . Feedback Blocked . | . . . . . . . . . . . . . . . . . Robot Schematics Acquired . | . . . . . . . . . . . . . . . . . Robots Built . | . . . . . . . . . . . . . . . . . Matter 252 | . . . . . . 252 . . . . . . . . . . Time 67 | . . . . . . 67 . . . . . . . . . . Total Robot Build Rating . | . . . . . . . . . . . . . . . . . Part Schematics Acquired 15 | . 1 . . . 4 1 . . . 1 5 3 . . . . Parts Built 4 | . . . . . . 1 . . . 1 1 1 . . . . Matter 838 | . . . . . . 146 109 . . 212 212 159 . . . . Time 321 | . . . . . . 36 73 . . 53 53 106 . . . . Total Part Build Rating 21 | . . . . . . 3 . . . 6 6 6 . . . . Parts Repaired 2 | . . . . . . . 1 . . . . 1 . . . . Time 46 | . . . . . . . 26 . . . . 20 . . . . Parts Recycled . | . . . . . . . . . . . . . . . . . Recycled Matter . | . . . . . . . . . . . . . . . . . Retrieved Matter . | . . . . . . . . . . . . . . . . . Retrieved Components 5 | . . . . . . . . . . . . 5 . . . . Parts Scanalyzed 1 | . . . . . . 1 . . . . . . . . . . Part Schematics Acquired 1 | . . . . . . 1 . . . . . . . . . . Parts Damaged . | . . . . . . . . . . . . . . . . . Bothacking | -11 -10 -10 -10 -9 -8 -7 -6 -6 -6 -5 -4 -3 -2 -2 -2 -1 ------------ Run | Scr Mat Min Exi Min Mat Fac Fac Low Low Fac Fac Res Res Qua Sec Acc Used RIF Installer . | . . . . . . . . . . . . . . . . . Robots Hacked . | . . . . . . . . . . . . . . . . . Non-combat . | . . . . . . . . . . . . . . . . . Combat . | . . . . . . . . . . . . . . . . . Robot Hacks Applied . | . . . . . . . . . . . . . . . . . Relay Couplers Released . | . . . . . . . . . . . . . . . . . Robots Rewired . | . . . . . . . . . . . . . . . . . Allies Hacked . | . . . . . . . . . . . . . . . . . Hacks Repelled . | . . . . . . . . . . . . . . . . . Allies | -11 -10 -10 -10 -9 -8 -7 -6 -6 -6 -5 -4 -3 -2 -2 -2 -1 -------- Run | Scr Mat Min Exi Min Mat Fac Fac Low Low Fac Fac Res Res Qua Sec Acc Total Allies 3 | . . . . 1 . . . . . . . 2 . . . . Largest Group 2 | . . . . 1 . . . . . . . 2 . . . . Highest-Rated Group 112 | . . . . 31 . . . . . . . 112 . . . . Highest-Rated Ally 56 | . . . . 31 . . . . . . . 56 . . . . Total Orders . | . . . . . . . . . . . . . . . . . Ally Attacks 14 | . . . . 5 . . . . . . . 9 . . . . Total Damage 375 | . . . . 63 . . . . . . . 312 . . . . Kills 3 | . . . . 2 . . . . . . . 1 . . . . Allies Corrupted . | . . . . . . . . . . . . . . . . . Allies Melted . | . . . . . . . . . . . . . . . . . Intel | -11 -10 -10 -10 -9 -8 -7 -6 -6 -6 -5 -4 -3 -2 -2 -2 -1 ------- Run | Scr Mat Min Exi Min Mat Fac Fac Low Low Fac Fac Res Res Qua Sec Acc Robot Analysis Total . | . . . . . . . . . . . . . . . . . Derelict Logs Recovered 3 | . . . . 1 . . . 2 . . . . . . . . Drone Launches . | . . . . . . . . . . . . . . . . . Drone Recoveries . | . . . . . . . . . . . . . . . . . Exploration | -11 -10 -10 -10 -9 -8 -7 -6 -6 -6 -5 -4 -3 -2 -2 -2 -1 ------------- Run | Scr Mat Min Exi Min Mat Fac Fac Low Low Fac Fac Res Res Qua Sec Acc Turns Passed 5213 | 74 373 13 202 115 76 380 296 163 52 383 937 965 286 160 257 481 Spaces Moved 9316 | 44 267 39 602 295 222 701 593 588 127 795 1411 1754 747 293 420 418 Core 245 | 6 . . . . . . . . . . . . . . . 239 Treads 292 | 38 129 . . . . . . . . . . . . . . 125 Legs . | . . . . . . . . . . . . . . . . . Wheels 48 | . . . . . . . . . . . . . . . . 48 Hover 6 | . . . . . . . . . . . . . . . . 6 Flight 8725 | . 138 39 602 295 222 701 593 588 127 795 1411 1754 747 293 420 . Fastest Speed 24 | 50 32 32 32 32 29 29 26 27 27 24 24 34 34 34 28 50 Average Speed 37 | 145 94 32 32 32 29 31 28 27 27 26 33 34 34 34 30 102 Slowest Speed 315 | 160 315 32 102 32 29 32 32 27 27 27 34 37 34 114 34 250 Overloaded Moves . | . . . . . . . . . . . . . . . . . Propulsion Burnouts . | . . . . . . . . . . . . . . . . . Robots Hopped 97 | . 2 . . . 8 5 4 . . 9 20 31 10 . 8 . Cave-ins Triggered . | . . . . . . . . . . . . . . . . . Teleports 1 | . . . . . . . . . . . . . . 1 . . Exploration Rate (%) 34 | 4 51 13 92 62 32 20 16 87 12 22 36 41 23 39 21 14 Regions Visited 16 Branch Regions 7 Pre-discovered Areas 1 | . . . 1 . . . . . . . . . . . . . Known Exits Taken 3 | . . . . 1 . . . . 1 . . 1 . . . . Unknown Exits Taken 13 | 1 1 1 1 . 1 1 1 1 . 1 1 . 1 1 1 . Scrap Searched 4 | . . . . 2 . . . 2 . . . . . . . . Spaces Dug . | . . . . . . . . . . . . . . . . . Terrain Destroyed . | . . . . . . . . . . . . . . . . . Melee . | . . . . . . . . . . . . . . . . . Projectile . | . . . . . . . . . . . . . . . . . AOE . | . . . . . . . . . . . . . . . . . Terrain Rammed . | . . . . . . . . . . . . . . . . . Walls Destroyed . | . . . . . . . . . . . . . . . . . Machines Disabled . | . . . . . . . . . . . . . . . . . Actions | -11 -10 -10 -10 -9 -8 -7 -6 -6 -6 -5 -4 -3 -2 -2 -2 -1 --------- Run | Scr Mat Min Exi Min Mat Fac Fac Low Low Fac Fac Res Res Qua Sec Acc Total 10879 | 52 334 38 609 315 225 852 719 591 143 961 1852 2069 768 342 544 465 Wait 1264 | . 1 . 3 15 . 134 100 . 16 157 425 278 4 9 97 25 Move 9122 | 43 262 38 601 294 205 691 584 587 126 777 1372 1699 727 292 406 418 Hop 82 | . 2 . . . 8 4 4 . . 8 18 23 9 . 6 . Pick Up 86 | 4 12 . . 3 2 8 7 1 . 3 9 18 9 3 5 2 Fast Attach 65 | 5 4 . 2 . . 5 5 1 1 5 6 4 7 5 4 11 Attach 55 | . 1 . . . 7 1 6 1 . 2 5 14 2 7 7 2 Detach 29 | . 1 . 1 . 2 . 3 . . 1 4 2 1 7 6 1 Swap 24 | . 4 . . 1 1 1 2 . . 1 3 6 2 1 2 . Drop 89 | . 16 . 2 2 . 8 8 1 . 6 10 10 7 8 9 2 Fire 56 | . 31 . . . . . . . . 1 . 12 . 10 . 2 Melee . | . . . . . . . . . . . . . . . . . Ram 4 | . . . . . . . . . . . . . . . 2 2 Kick . | . . . . . . . . . . . . . . . . . Crush . | . . . . . . . . . . . . . . . . . Escape Stasis 3 | . . . . . . . . . . . . 3 . . . . Rewire . | . . . . . . . . . . . . . . . . . Trap . | . . . . . . . . . . . . . . . . . Miscellaneous . | . . . . . . . . . . . . . . . . . Route ------- -11/Scrapyard -10/Materials -10/Mines -10/Exiles (discovered 2 exits: *Min x2) -9/Mines (discovered 2 exits: *Mat x2) -8/Materials -7/Factory -6/Factory -6/Lower Caves -6/Lower Caves -5/Factory -4/Factory -3/Research (discovered 3 exits: *Res x3) -2/Research -2/Quarantine -2/Section 7 -1/Access History --------- Turn | Location | Event 11 | -11/Scrapyard | Discovered new exit (range 15) 75 | -11/Scrapyard | Entered Materials 301 | -10/Materials | Build established: Mutant 441 | -10/Materials | Discovered new exit (range 12) 448 | -10/Materials | Entered Mines 457 | -10/Mines | Assembled infested the area 459 | -10/Mines | Deemed a non-threat by the Exiles lab entrance 459 | -10/Mines | Discovered new exit (range 5) 461 | -10/Mines | Entered Exiles 466 | -10/Exiles | Discovered new exit (range 17) 471 | -10/Exiles | Met 8R-AWN 475 | -10/Exiles | Met EX-HEX 488 | -10/Exiles | Met EX-DEC 491 | -10/Exiles | Learned location of Zion (-6) 505 | -10/Exiles | Visited The Gauntlet 560 | -10/Exiles | Discovered new exit (range 14) 582 | -10/Exiles | Met EX-BIN 610 | -10/Exiles | Aligned with FarCom system 610 | -10/Exiles | Given EX-Vault access code 618 | -10/Exiles | Opened EX-Vault 621 | -10/Exiles | Found Prototype Device 621 | -10/Exiles | Identified Cloak of Protection 627 | -10/Exiles | Found Prototype Device 627 | -10/Exiles | Identified Trap Reconfigurator 639 | -10/Exiles | Warned to stay clear of 0b10 Research branches 663 | -10/Exiles | Left Exiles lab with Trap Reconfigurator 663 | -10/Exiles | Entered Mines 667 | -9/Mines | Build established: Sprinter 706 | -9/Mines | Received a Mining Laser from a helpful Derelict 757 | -9/Mines | Discovered new exit (range 7) 771 | -9/Mines | Identified exit to Materials 773 | -9/Mines | Met a Derelict shopkeep closing up shop 778 | -9/Mines | Entered Materials 778 | -8/Materials | Evolved 4 slots: Power x1, Propulsion x2, Utility x1 850 | -8/Materials | Discovered new exit (range 14) 854 | -8/Materials | Entered Factory 854 | -7/Factory | Evolved 2 slots: Propulsion x1, Utility x1 965 | -7/Factory | Fabricated Hacking Suite (x1) 1226 | -7/Factory | Discovered new exit (range 21) 1234 | -7/Factory | Entered another Factory area 1234 | -6/Factory | Evolved 2 slots: Utility x2 1297 | -6/Factory | Build established: Hacker-Sprinter 1454 | -6/Factory | Repaired Ion Engine 1522 | -6/Factory | Discovered new exit (range 12) 1530 | -6/Factory | Entered Lower Caves 1577 | -6/Lower Caves | Learned Factory stockpile data 1671 | -6/Lower Caves | Discovered new exit (range 13) 1682 | -6/Lower Caves | Learned location of 1 exit from Lower Caves 1693 | -6/Lower Caves | Entered another Lower Caves area 1694 | -6/Lower Caves | Encountered a Warlord checkpoint 1694 | -6/Lower Caves | Identified exit to Factory 1714 | -6/Lower Caves | Attracted the attention of an 0b10 checkpoint 1745 | -6/Lower Caves | Entered Factory 1745 | -5/Factory | Evolved 2 slots: Power x1, Propulsion x1 1848 | -5/Factory | Spotted B-75 Beast 1931 | -5/Factory | Fabricated Adv. Hacking Suite (x1) 2124 | -5/Factory | Discovered new exit (range 15) 2128 | -5/Factory | Entered another Factory area 2128 | -4/Factory | Evolved 2 slots: Utility x2 2435 | -4/Factory | Build established: Hacker-Mutant 2792 | -4/Factory | Fabricated Adv. Hacking Suite (x1) 3054 | -4/Factory | Discovered new exit (range 8) 3065 | -4/Factory | Entered Research 3065 | -3/Research | Evolved 2 slots: Utility x2 3258 | -3/Research | Fabricated Adv. Hacking Suite? 3328 | -3/Research | Spotted B-86 Titan 3393 | -3/Research | Adv. Hacking Suite fried by hacking feedback 3463 | -3/Research | Local fabrication network quarantined 3619 | -3/Research | Lost 6 parts (2p2n1u1w) 3728 | -3/Research | Found Gamma Bomb Array 3815 | -3/Research | First assault squad dispatched 3864 | -3/Research | Build established: Wizard-Mutant 3871 | -3/Research | Repaired Field Propulsion Array 3894 | -3/Research | Identified exit to Research 4030 | -3/Research | Entered another Research area 4030 | -2/Research | Evolved 2 slots: Utility x2 4059 | -2/Research | Lost 9 parts (1p1n4u3w) 4196 | -2/Research | Found Prototype Processor 4196 | -2/Research | Identified Spectral Analyzer 4314 | -2/Research | Discovered new exit (range 7) 4316 | -2/Research | Entered Quarantine 4317 | -2/Quarantine | Maximum security lockdown engaged 4341 | -2/Quarantine | Scanned by Researcher 4366 | -2/Quarantine | Found Alien Artifact 4366 | -2/Quarantine | Identified Matter Drive 4384 | -2/Quarantine | Found Alien Artifact 4384 | -2/Quarantine | Identified Hpw. Transdimensional Reconstructor 4384 | -2/Quarantine | Warped through subspace 4394 | -2/Quarantine | Found Alien Artifact 4394 | -2/Quarantine | Identified Phase Armor 4439 | -2/Quarantine | Spotted Executioner 4447 | -2/Quarantine | Spotted Fortress 4474 | -2/Quarantine | Discovered new exit (range 6) 4476 | -2/Quarantine | Entered Section 7 4477 | -2/Section 7 | Maximum security lockdown engaged 4698 | -2/Section 7 | Spotted B-90 Cyclops 4724 | -2/Section 7 | Discovered new exit (range 8) 4732 | -2/Section 7 | Core integrity fell below 50% 4733 | -2/Section 7 | Entered Access 4733 | -1/Access | Evolved 2 slots: Weapon x2 4763 | -1/Access | Lost 13 parts (1p5n7u) 4983 | -1/Access | First assault squad dispatched 4985 | -1/Access | Build established: Mutant 5171 | -1/Access | Core integrity fell below 50% 5196 | -1/Access | Lost 8 parts (4n4u) 5200 | -1/Access | Core integrity fell below 20% 5214 | -1/Access | Destroyed by P-80 Master with Gamma Rifle Last Messages --------------- 05143_ Dropped Exp. Matter Compressor. 05146_ Biometal Heavy Treads destroyed. 05146_ Signal Shield disabled. 05153_ Acquired Imp. Gyrokinetic Inverter. 05156_ Terminal disabled. 05157_ Biometal Heavy Treads destroyed. 05159_ S-43 Plague destroyed. 05160_ Dropped Imp. Gyrokinetic Inverter. 05160_ Slammed into S-43 Plague. 05165_ Adv. ECM Suite destroyed. 05174_ S-43 Plague destroyed. 05183_ U-05 Engineer lays Concrete. 05191_ Slammed into P-80 Master. 05204_ A-15 Conveyor destroyed. 05205_ K-01 Serf collects debris. 05205_ Fabricator disabled. 05205_ K-01 Serf cleans the Sealed Freight Elevator. 05206_ Acquired Imp. Heavy Siege Treads. 05209_ K-01 Serf collects debris. [Achievement: Achiever] Map ----- +----------------------------------------------------+ | # #??????????????????????? | | ############ #??????????????????????? | | ???????????# %= #??????????????????????? | | ???????????# #??????????????????????? | | ???????????# ##########+####????????? | | ???????????######## #????????? | | ??????????????????# #????????? | | ??????????????????# #????????? | | ??????????????????# #??????### | | ??????????????????# #??????# | | ??????????????????# g #??????# | | ???????????######## g ######## | | ???????????# p !!= g####### # | | ???????????# !%! k p#?????# # | | ???######### *!= g #?????# # | | ? w ""#?????# + | | ?????####### p """#?????# # | | ???????????# k =""#?????# # | | ????????#### !=F""#?????# # | | ????????# R ="""#?????###########+##+# | | ????????# ss #?????????????? ?# | | ????????# u #????????????# ### | | ??????### sl#????????????# #?? | | ????w k g #######??????#] #?? | | ??? #??????# #?? | | ??? g@ #??????# / #?? | | ??? #??????# #?? | | ???? #??????# #?? | | ???? #??????# ! #?? | | ????? u #??????# #?? | | ?????# """""" #??????# #?? | | ?????# """""" """###########??????# #?? | | ?????? ??"""""" """?????????????????# #?? | | ?????? ??????""" ""?????????????????# #?? | | ?????????????""" F""?????????????????# #?? | | ????????????? "???????????????????# #?? | | ???????????? ?????????????????????# #?? | | ??????????? ?????????????????????#########?? | | ???????????? ????????????????????????????????? | | ???????????##????????????????????????????????????? | | ?????????????????????????????????????????????????? | | ?????????????????????????????????????????????????? | | ?????????????????????????????????????????????????? | | ?????????????????????????????????????????????????? | | ?????????????????????????????????????????????????? | | ?????????????????????????????????????????????????? | | ?????????????????????????????????????????????????? | | ?????????????????????????????????????????????????? | | ?????????????????????????????????????????????????? | | ?????????????????????????????????????????????????? | +----------------------------------------------------+ Best States ------------- Heat Dissipation 52 Energy Generation 56 Energy Capacity 760 Matter Stores 390 Matter Capacity 800 Sight Range 22 Terrain Scan Density 85 ECM Strength 3 Jamming Range 16 Cloak Strength 3 Power Amplification 40 Heat Shielding 100 Armor Coverage 375 Phase Shifting 10 Evasion (%) 78 Targeting Accuracy 20 Target Analysis 6 Recoil Reduction 4 Stasis Canceling 2 Offensive Hacking 70 Defensive Hacking 10 Item Schematics ----------------- Hcp. Storage Unit | -10/Materials | Hacked Imp. Signal Interpreter | -8/Materials | Extracted Lrn. Tractor Beam | -8/Materials | Extracted Insulated Plating | -8/Materials | Extracted Hacking Suite | -8/Materials | Hacked Imp. Flight Unit | -7/Factory | Scanalyzed Adv. Hacking Suite | -5/Factory | Hacked Fusion Compressor | -4/Factory | Extracted Hvy. Phase Cannon | -4/Factory | Extracted Arm. Huge Wheel | -4/Factory | Extracted Com. Matter Pod | -4/Factory | Extracted Scatter Rocket Array | -4/Factory | Extracted Imp. Overload Amplifier | -3/Research | Extracted Exp. Power Amplifier | -3/Research | Extracted Adv. Hardlight Generator | -3/Research | Extracted Robot Schematics ------------------ None Fabricated ------------ Hacking Suite | x1 | -7/Factory Adv. Hacking Suite | x1 | -5/Factory Adv. Hacking Suite | x1 | -4/Factory Adv. Hacking Suite | x1 | -3/Research Alien Tech Used ----------------- Matter Drive High-powered Transdimensional Reconstructor Phase Armor Achievements -------------- Achiever Alien Tech Cya! Denied? Dodgeball, But With Guns Just What I Needed Nope Prolific Hacker Rockin' Loadout Subspace Traveler Challenges ------------ None Game ------ Seed HellfireOpticalRailgun Manual? 0 Play Time 02:22:00 Cumulative 28.6 hours Start 2022.02.25 @ 15:58:57 End 2022.02.25 @ 18:21:47 Sessions 1 Manual Loads 0 Difficulty Rogue Special Mode None Game No. 30 Rogue 30 Adventurer 0 Explorer 0 Win Type - Total 0 Types 0/0/0/0/0/0/0/0/0 Lore% 21 Gallery% 32 Achievement% 27 Wizard Run 0 Options --------- ASCII 0 Keyboard 0 Movement Numpad Keybinds 0 Fullscreen 2 Font 18/SmallcapsGlow Map View 76x50 Tactical HUD 1 Map Filters NONE Filters NONE Steam 1 RUN: b970c287-1a2a-4bb9-8416-2e880e0130aa